Workbook

Sheet GOA Gfish Specs 2020
A1: Table 1. SSC recommended OFLs and ABCs for Groundfish in the Gulf of Alaska (metric tons) for 2020-2021.
D2: 2019 | F2: Catch | G2: 2020 | I2: 2020 TAC | J2: 2021 | L2: 2021 TAC
A3: Species | B3: Area | C3: OFL | D3: ABC | E3: TAC | F3: 2019-11-02 | G3: OFL | H3: ABC | J3: OFL | K3: ABC
A5: Pollock | B5: State GHL | C5: n/a | D5: 3,396 | E5: 0 | G5: n/a | H5: 2,712 | J5: n/a | K5: 2,797
B6: W (610) | C6: n/a | D6: 24,875 | E6: 24,875 | F6: 21,867 | G6: n/a | H6: 19,175 | J6: n/a | K6: 19,775
B7: C (620) | C7: n/a | D7: 67,388 | E7: 67,388 | F7: 64,079 | G7: n/a | H7: 54,456 | J7: n/a | K7: 56,160
B8: C (630) | C8: n/a | D8: 34,443 | E8: 34,443 | F8: 24,461 | G8: n/a | H8: 26,597 | J8: n/a | K8: 27,429
B9: WYAK | C9: n/a | D9: 5,748 | E9: 5,748 | F9: 6,612 | G9: n/a | H9: 5,554 | J9: n/a | K9: 5,728
B10: Subtotal | C10: 194,230 | D10: =SUM(D5:D9) -> 135,850 | E10: =SUM(E6:E9) -> 132,454 | F10: =SUM(F6:F9) -> 117,019 | G10: 140,674 | H10: =SUM(H5:H9) -> 108,494 | J10: 149,988 | K10: =SUM(K5:K9)-1 -> 111,888
B11: EYAK/SEO | C11: 11,697 | D11: 8,773 | E11: 8,773 | F11: 0 | G11: 13,531 | H11: 10,148 | J11: 13,531 | K11: 10,148
B12: Total | C12: =C10+C11 -> 205,927 | D12: 144,623 | E12: 141,227 | F12: 117,019 | G12: =SUM(G10:G11) -> 154,205 | H12: =H10+H11 -> 118,642 | J12: =SUM(J10:J11) -> 163,519 | K12: =K10+K11 -> 122,036
A13: Pacific Cod | B13: W | C13: n/a | D13: 7,633 | E13: 5,343 | F13: 5,017 | G13: n/a | H13: 4,942 | J13: n/a | K13: 4,942
B14: C | C14: n/a | D14: 7,667 | E14: 5,750 | F14: 5,705 | G14: n/a | H14: 8,458 | J14: n/a | K14: 8,458
B15: E | C15: n/a | D15: 1,700 | E15: 1,275 | F15: 187 | G15: n/a | H15: 1,221 | J15: n/a | K15: 1,221
B16: Total | C16: 23,669 | D16: =SUM(D13:D15) -> 17,000 | E16: =SUM(E13:E15) -> 12,368 | F16: =SUM(F13:F15) -> 10,909 | G16: 17,794 | H16: =SUM(H13:H15) -> 14,621 | J16: 30,099 | K16: =SUM(K13:K15) -> 14,621
A17: Sablefish | B17: W | C17: n/a | D17: 1,581 | E17: 1,581 | F17: 1,438 | G17: n/a | H17: 2,278 | J17: n/a | K17: 3,003
B18: C | C18: n/a | D18: 5,178 | E18: 5,178 | F18: 5,970 | G18: n/a | H18: 7,560 | J18: n/a | K18: 9,963
B19: WYAK | C19: n/a | D19: 1,828 | E19: 1,828 | F19: 1,774 | G19: n/a | H19: 2,521 | J19: n/a | K19: 3,323
B20: SEO | C20: n/a | D20: 2,984 | E20: 2,984 | F20: 3,037 | G20: n/a | H20: 4,524 | J20: n/a | K20: 5,963
B21: Total (AK wide) | C21: 25,227 | D21: =SUM(D17:D20) -> 11,571 | E21: =SUM(E17:E20) -> 11,571 | F21: =SUM(F17:F20) -> 12,219 | G21: 50,481 | H21: =SUM(H17:H20) -> 16,883 | J21: 64,765 | K21: =SUM(K17:K20) -> 22,252
A22: Shallow-Water Flatfish | B22: W | C22: n/a | D22: 25,620 | E22: 13,250 | F22: 72 | G22: n/a | H22: 23,849 | J22: n/a | K22: 24,256
B23: C | C23: n/a | D23: 25,731 | E23: 25,731 | F23: 2,303 | G23: n/a | H23: 27,732 | J23: n/a | K23: 28,205
B24: WYAK | C24: n/a | D24: 2,279 | E24: 2,279 | F24: 1 | G24: n/a | H24: 2,773 | J24: n/a | K24: 2,820
B25: EYAK/SEO | C25: n/a | D25: 1,957 | E25: 1,957 | F25: 1 | G25: n/a | H25: 1,109 | J25: n/a | K25: 1,128
B26: Total | C26: 68,309 | D26: =SUM(D22:D25) -> 55,587 | E26: =SUM(E22:E25) -> 43,217 | F26: =SUM(F22:F25) -> 2,377 | G26: 68,010 | H26: =SUM(H22:H25) -> 55,463 | J26: 69,129 | K26: =SUM(K22:K25) -> 56,409
A27: Deep-Water Flatfish | B27: W | C27: n/a | D27: 416 | E27: 416 | F27: 2 | G27: n/a | H27: 226 | J27: n/a | K27: 225
B28: C | C28: n/a | D28: 3,443 | E28: 3,443 | F28: 92 | G28: n/a | H28: 1,948 | J28: n/a | K28: 1,914
B29: WYAK | C29: n/a | D29: 3,280 | E29: 3,280 | F29: 8 | G29: n/a | H29: 2,105 | J29: n/a | K29: 2,068
B30: EYAK/SEO | C30: n/a | D30: 2,362 | E30: 2,362 | F30: 4 | G30: n/a | H30: 1,751 | J30: n/a | K30: 1,719
B31: Total | C31: 11,434 | D31: =SUM(D27:D30) -> 9,501 | E31: =SUM(E27:E30) -> 9,501 | F31: =SUM(F27:F30) -> 106 | G31: 7,163 | H31: =SUM(H27:H30) -> 6,030 | J31: 7,040 | K31: =SUM(K27:K30) -> 5,926
A32: Rex Sole | B32: W | C32: n/a | D32: 2,951 | E32: 2,951 | F32: 74 | G32: n/a | H32: 2,901 | J32: n/a | K32: 3,013
B33: C | C33: n/a | D33: 8,357 | E33: 8,357 | F33: 1,447 | G33: n/a | H33: 8,579 | J33: n/a | K33: 8,912
B34: WYAK | C34: n/a | D34: 1,657 | E34: 1,657 | F34: 2 | G34: n/a | H34: 1,174 | J34: n/a | K34: 1,206
B35: EYAK/SEO | C35: n/a | D35: 1,727 | E35: 1,727 | F35: 0 | G35: n/a | H35: 2,224 | J35: n/a | K35: 2,285
B36: Total | C36: 17,889 | D36: =SUM(D32:D35) -> 14,692 | E36: =SUM(E32:E35) -> 14,692 | F36: =SUM(F32:F35) -> 1,523 | G36: 18,127 | H36: =SUM(H32:H35) -> 14,878 | J36: 18,779 | K36: =SUM(K32:K35) -> 15,416
A37: Arrowtooth Flounder | B37: W | C37: n/a | D37: 35,994 | E37: 14,500 | F37: 683 | G37: n/a | H37: 31,455 | J37: n/a | K37: 30,545
B38: C | C38: n/a | D38: 70,995 | E38: 70,995 | F38: 22,840 | G38: n/a | H38: 68,669 | J38: n/a | K38: 66,683
B39: WYAK | C39: n/a | D39: 15,911 | E39: 6,900 | F39: 85 | G39: n/a | H39: 10,242 | J39: n/a | K39: 9,946
B40: EYAK/SEO | C40: n/a | D40: 22,941 | E40: 6,900 | F40: 24 | G40: n/a | H40: 17,694 | J40: n/a | K40: 17,183
B41: Total | C41: 174,598 | D41: =SUM(D37:D40) -> 145,841 | E41: =SUM(E37:E40) -> 99,295 | F41: =SUM(F37:F40) -> 23,632 | G41: 153,017 | H41: =SUM(H37:H40) -> 128,060 | J41: 148,597 | K41: =SUM(K37:K40) -> 124,357
A42: Flathead Sole | B42: W | C42: n/a | D42: 13,234 | E42: 8,650 | F42: 210 | G42: n/a | H42: 13,783 | J42: n/a | K42: 14,191
B43: C | C43: n/a | D43: 21,109 | E43: 15,400 | F43: 2,343 | G43: n/a | H43: 20,201 | J43: n/a | K43: 20,799
B44: WYAK | C44: n/a | D44: 2,016 | E44: 2,016 | F44: 0 | G44: n/a | H44: 2,354 | J44: n/a | K44: 2,424
B45: EYAK/SEO | C45: n/a | D45: 423 | E45: 423 | F45: 0 | G45: n/a | H45: 1,858 | J45: n/a | K45: 1,912
B46: Total | C46: 44,865 | D46: =SUM(D42:D45) -> 36,782 | E46: =SUM(E42:E45) -> 26,489 | F46: =SUM(F42:F45) -> 2,553 | G46: 46,572 | H46: =SUM(H42:H45) -> 38,196 | J46: 47,919 | K46: =SUM(K42:K45) -> 39,326
A47: Pacific ocean perch | B47: W | C47: n/a | D47: 3,227 | E47: 3,227 | F47: 3,145 | G47: n/a | H47: 1,437 | J47: n/a | K47: 1,379
B48: C | C48: n/a | D48: 19,646 | E48: 19,646 | F48: 18,114 | G48: n/a | H48: 23,678 | J48: n/a | K48: 22,727
B49: WYAK | C49: n/a | D49: 3,296 | E49: 3,296 | F49: 3,288 | G49: n/a | H49: 1,470 | J49: n/a | K49: 1,410
B50: W/C/WYAK | C50: 31,113 | D50: =SUM(D47:D49) -> 26,169 | E50: =SUM(E47:E49) -> 26,169 | F50: =F47+F48+F49 -> 24,547 | G50: 31,567 | H50: =SUM(H47:H49) -> 26,585 | J50: 30,297 | K50: =SUM(K47:K49) -> 25,516
B51: SEO | C51: 2,838 | D51: 2,386 | E51: 2,386 | F51: 0 | G51: 5,525 | H51: 4,653 | J51: 5,303 | K51: 4,467
B52: Total | C52: =C50+C51 -> 33,951 | D52: 28,555 | E52: 28,555 | F52: =F50+F51 -> 24,547 | G52: =G50+G51 -> 37,092 | H52: =H50+H51 -> 31,238 | J52: =SUM(J50:J51) -> 35,600 | K52: =K50+K51 -> 29,983
A53: Northern Rockfish | B53: W | C53: n/a | D53: 1,190 | E53: 1,190 | F53: 819 | G53: n/a | H53: 1,133 | J53: n/a | K53: 1,079
B54: C | C54: n/a | D54: 3,338 | E54: 3,338 | F54: 1,790 | G54: n/a | H54: 3,178 | J54: n/a | K54: 3,027
B55: E | C55: n/a | D55: 1 | E55: 0 | F55: 0 | G55: n/a | H55: 1 | J55: n/a | K55: 1
B56: Total | C56: 5,402 | D56: =D53+D54+D55 -> 4,529 | E56: =E53+E54 -> 4,528 | F56: =SUM(F53:F55) -> 2,609 | G56: 5,143 | H56: =SUM(H53:H55) -> 4,312 | J56: 4,898 | K56: =SUM(K53:K55) -> 4,107
A57: Shortraker Rockfish | B57: W | C57: n/a | D57: 44 | E57: 44 | F57: 55 | G57: n/a | H57: 52 | J57: n/a | K57: 52
B58: C | C58: n/a | D58: 305 | E58: 305 | F58: 226 | G58: n/a | H58: 284 | J58: n/a | K58: 284
B59: E | C59: n/a | D59: 514 | E59: 514 | F59: 391 | G59: n/a | H59: 372 | J59: n/a | K59: 372
B60: Total | C60: 1,151 | D60: =SUM(D57:D59) -> 863 | E60: =SUM(E57:E59) -> 863 | F60: =SUM(F57:F59) -> 672 | G60: 944 | H60: =SUM(H57:H59) -> 708 | J60: 944 | K60: =SUM(K57:K59) -> 708
A61: Dusky Rockfish | B61: W | C61: n/a | D61: 781 | E61: 781 | F61: 198 | G61: n/a | H61: 776 | J61: n/a | K61: 759
B62: C | C62: n/a | D62: 2,764 | E62: 2,764 | F62: 2,071 | G62: n/a | H62: 2,746 | J62: n/a | K62: 2,688
B63: WYAK | C63: n/a | D63: 95 | E63: 95 | F63: 93 | G63: n/a | H63: 115 | J63: n/a | K63: 113
B64: EYAK/SEO | C64: n/a | D64: 60 | E64: 60 | F64: 3 | G64: n/a | H64: 39 | J64: n/a | K64: 38
B65: Total | C65: 4,521 | D65: =SUM(D61:D64) -> 3,700 | E65: =SUM(E61:E64) -> 3,700 | F65: =SUM(F61:F64) -> 2,365 | G65: 4,492 | H65: =SUM(H61:H64) -> 3,676 | J65: 4,396 | K65: =SUM(K61:K64) -> 3,598
A66: Rougheye and Blackspotted Rockfish | B66: W | C66: n/a | D66: 174 | E66: 174 | F66: 78 | G66: n/a | H66: 168 | J66: n/a | K66: 169
B67: C | C67: n/a | D67: 550 | E67: 550 | F67: 433 | G67: n/a | H67: 455 | J67: n/a | K67: 455
B68: E | C68: n/a | D68: 704 | E68: 704 | F68: 208 | G68: n/a | H68: 586 | J68: n/a | K68: 587
B69: Total | C69: 1,715 | D69: =SUM(D66:D68) -> 1,428 | E69: =SUM(E66:E68) -> 1,428 | F69: =SUM(F66:F68) -> 719 | G69: 1,452 | H69: =SUM(H66:H68) -> 1,209 | J69: 1,455 | K69: =SUM(K66:K68) -> 1,211
A70: Demersal shelf rockfish | B70: Total | C70: 411 | D70: 261 | E70: 261 | F70: 140 | G70: 375 | H70: 238 | J70: 375 | K70: 238
A71: Thornyhead Rockfish | B71: W | C71: n/a | D71: 326 | E71: 326 | F71: 124 | G71: n/a | H71: 326 | J71: n/a | K71: 326
B72: C | C72: n/a | D72: 911 | E72: 911 | F72: 375 | G72: n/a | H72: 911 | J72: n/a | K72: 911
B73: E | C73: n/a | D73: 779 | E73: 779 | F73: 265 | G73: n/a | H73: 779 | J73: n/a | K73: 779
B74: Total | C74: 2,688 | D74: =SUM(D71:D73) -> 2,016 | E74: =SUM(E71:E73) -> 2,016 | F74: =SUM(F71:F73) -> 764 | G74: 2,688 | H74: =SUM(H71:H73) -> 2,016 | J74: 2,688 | K74: =SUM(K71:K73) -> 2,016
A75: Other Rockfish | B75: W/C | C75: n/a | D75: 1,737 | E75: 1,737 | F75: 684 | G75: n/a | H75: 940 | J75: n/a | K75: 940
B76: WYAK | C76: n/a | D76: 368 | E76: 368 | F76: 180 | G76: n/a | H76: 369 | J76: n/a | K76: 369
B77: EYAK/SEO | C77: n/a | D77: 3,489 | E77: 3,489 | F77: 50 | G77: n/a | H77: =2744 -> 2,744 | J77: n/a | K77: =2744 -> 2,744
B78: Total | C78: 7,356 | D78: =SUM(D75:D77) -> 5,594 | E78: =SUM(E75:E77) -> 5,594 | F78: =SUM(F75:F77) -> 914 | G78: 5,320 | H78: =SUM(H75:H77) -> 4,053 | J78: 5,320 | K78: =SUM(K75:K77) -> 4,053
A79: Atka mackerel | B79: Total | C79: 6,200 | D79: 4,700 | E79: 3,000 | F79: 1,254 | G79: 6,200 | H79: 4,700 | J79: 6,200 | K79: 4,700
A80: Big Skate | B80: W | C80: n/a | D80: 504 | E80: 504 | F80: 114 | G80: n/a | H80: 758 | J80: n/a | K80: 758
B81: C | C81: n/a | D81: 1,774 | E81: 1,774 | F81: 977 | G81: n/a | H81: 1,560 | J81: n/a | K81: 1,560
B82: E | C82: n/a | D82: 570 | E82: 570 | F82: 101 | G82: n/a | H82: 890 | J82: n/a | K82: 890
B83: Total | C83: 3,797 | D83: =SUM(D80:D82) -> 2,848 | E83: =SUM(E80:E82) -> 2,848 | F83: =SUM(F80:F82) -> 1,192 | G83: 4,278 | H83: =SUM(H80:H82) -> 3,208 | J83: 4,278 | K83: =SUM(K80:K82) -> 3,208
A84: Longnose Skate | B84: W | C84: n/a | D84: 149 | E84: 149 | F84: 59 | G84: n/a | H84: 158 | J84: n/a | K84: 158
B85: C | C85: n/a | D85: 2,804 | E85: 2,804 | F85: 616 | G85: n/a | H85: 1,875 | J85: n/a | K85: 1,875
B86: E | C86: n/a | D86: 619 | E86: 619 | F86: 308 | G86: n/a | H86: 554 | J86: n/a | K86: 554
B87: Total | C87: 4,763 | D87: =SUM(D84:D86) -> 3,572 | E87: =SUM(E84:E86) -> 3,572 | F87: =SUM(F84:F86) -> 983 | G87: 3,449 | H87: =SUM(H84:H86) -> 2,587 | J87: 3,449 | K87: =SUM(K84:K86) -> 2,587
A88: Other Skates | B88: GOA-wide | C88: 1,845 | D88: 1,384 | E88: 1,384 | F88: 867 | G88: 1,166 | H88: 875 | J88: 1,166 | K88: 875
A89: Sculpins | B89: GOA-wide | C89: 6,958 | D89: 5,301 | E89: 5,301 | F89: 574 | G89: 6,932 | H89: 5,199 | J89: 6,932 | K89: 5,199
A90: Sharks | B90: GOA-wide | C90: 10,913 | D90: 8,184 | E90: 8,184 | F90: 1,728 | G90: 10,913 | H90: 8,184 | J90: 10,913 | K90: 8,184
A91: Squids | B91: GOA-wide | C91: 0 | D91: 0 | G91: 0 | H91: 0 | J91: 0 | K91: 0
A92: Octopuses | B92: GOA-wide | C92: 1,300 | D92: 975 | E92: 975 | F92: 316 | G92: 1,307 | H92: 980 | J92: 1,307 | K92: 980
A93: TOTAL | C93: =C12+C16+C21+C26+C31+C36+C41+C46+C52+C56+C60+C65+C69+C70+C74+C78+C79+C83+C87+C88+C89+C90+C91+C92 -> 664,889 | D93: 509,507 | E93: 430,569 | F93: 209,982 | G93: =SUM(G12+G16+G21+G26+G31+G36+G41+G46+G52+G56+G60+G65+G69+G70+G74+G78+G79+G83+G87+G88+G89+G90+G91+G92) -> 607,120 | H93: 465,956 | J93: =J12+J16+J21+J26+J31+J36+J41+J46+J52+J56+J60+J65+J69+J70+J74+J78+J79+J83+J87+J88+J89+J90+J91+J92 -> 639,768 | K93: =K12+K16+K21+K26+K31+K36+K41+K46+K52+K56+K60+K65+K69+K70+K74+K78+K79+K83+K87+K88+K89+K90+K91+K92 -> 471,990
A94: Sources: 2018 OFLs, ABCs, and TACs are from harvest specifications adopted by the Council in December 2017; 2019 OFLs, ABCs, and TACs are from the harvest specifications adopted by the Council in December 2018, 2018 catches through December 31, 2018 and 2019 catches through November 2, 2019 from AKR Catch Accounting.
A95: * The SSC has requested that the OFL listed represents Alaska-wide OFL.

Sheet Sheet1
